{"text_format":"1","workbook":"xlsx","n_sheets":9,"sheets":["ΓΕΝΙΚΑ ΣΤΟΙΧΕΙΑ","ΚΟΣΤΟΣ ΕΠΕΝΔΥΣΗΣ","ΕΠΙΛΕΞΙΜΟ ΚΟΣΤΟΣ","ΑΝΑΛΥΣΗ ΕΣΟΔΩΝ","ΕΣΟΔΑ","ΑΝΑΛΥΣΗ ΔΑΠΑΝΩΝ","ΔΑΠΑΝΕΣ","ΤΑΜΕΙΑΚΕΣ ΡΟΕΣ","ΚΑΘΑΡΑ ΕΣΟΔΑ"],"not_rendered":{"charts":0,"images":0,"macros":1,"external_links":0,"defined_names":21,"comments":0,"pivot_tables":0},"unopened":[],"bounds":{"document_bytes":16777216,"sheet_cells":100000,"rows_first":2000,"rows_last":500,"rows_between":2000,"halvings":0,"cell_chars":16384,"cell_head_chars":4096},"cells_cut":0,"cells_raw":0,"read":"whole","date_system":"1900"}

{"sheet":"ΓΕΝΙΚΑ ΣΤΟΙΧΕΙΑ","index":0,"n_rows":35,"n_cols":3,"rows_kept":35,"cut":false,"hidden":false,"merged":[]}
[]
[null,"ΓΕΝΙΚΑ ΣΤΟΙΧΕΙΑ ΕΡΓΟΥ"]
[]
[null,"ΤΙΤΛΟΣ ΕΡΓΟΥ "]
[null,"ΔΙΚΑΙΟΥΧΟΣ"]
[null,"ΣΥΝΤΟΜΗ ΤΕΧΝΙΚΗ ΠΕΡΙΓΡΑΦΗ (1)"]
[]
[null,"ΕΤΟΣ ΒΑΣΗΣ (2)"]
[null,"ΠΕΡΙΟΔΟΣ ΑΝΑΦΟΡΑΣ ΟΙΚΟΝΟΜΙΚΗΣ ΑΝΑΛΥΣΗΣ  (3)"]
[null,"ΤΕΛΕΥΤΑΙΟ ΕΤΟΣ ΑΝΑΛΥΣΗΣ",{"$f":"C8+C9-1","v":-1}]
[null,"ΦΠΑ (ΕΠΙΛΕΞΙΜΟΣ = 1, ΜΗ ΕΠΙΛΕΞΙΜΟΣ = 2)   (4)"]
[]
[null,"Τομέας","Περίοδος αναφοράς (έτη)"]
[null,"Σιδηρόδρομοι",30]
[null,"Ύδρευση/αποχέτευση",30]
[null,"Οδοί","25-30"]
[null,"Διαχείριση αποβλήτων","25-30"]
[null,"Λιμένες & αερολιμένες",25]
[null,"Αστικές μεταφορές","25-30"]
[null,"Ενέργεια","15-25"]
[null,"Έρευνα & καινοτομία","15-25"]
[null,"Ευρυζωνικά δίκτυα","15-20"]
[null,"Επιχειρηματικές υποδομές"," 10-15"]
[null,"Άλλοι τομείς"," 10-15"]
[]
[null,"Σημειώσεις"]
[null,"(1)  Παρουσίαση των βασικών τεχνικών χαρακτηριστικών του έργου για το οποίο παραγματοποιείται η ανάλυση, ώστε να αποσαφηνίζεται το φυσικό του αντικείμενο "]
[]
[]
[]
[]
[null,"(2)  Το έτος βάσης της ανάλυσης συμπίπτει με το έτος έναρξης κατασκευής του έργου."]
[null,"(3)  Συμπληρώνεται η περίοδος αναφοράς της χ/ο ανάλυσης. Σε περίπτωση που διαφοροποιείται από τον Πίνακα, να δωθεί αιτιολογία στο πεδίο \"ΣΥΝΤΟΜΗ ΤΕΧΝΙΚΗ ΠΕΡΙΓΡΑΦΗ\""]
[null,"(4)  Αν ο ΦΠΑ είναι επιλέξιμος (δηλ. μη ανακτήσιμος) συμπληρώνεται η ένδειξη 1"]
[null,"  Αν ο ΦΠΑ είναι μη επιλέξιμος (δηλ. ανακτήσιμος) συμπληρώνεται η ένδειξη 2"]

{"sheet":"ΚΟΣΤΟΣ ΕΠΕΝΔΥΣΗΣ","index":1,"n_rows":19,"n_cols":17,"rows_kept":19,"cut":false,"hidden":false,"merged":[[1,1,1,16],[25,4,25,19],[17,1,17,16]]}
[]
[null,"ΑΝΑΛΥΣΗ ΣΥΝΟΛΙΚΟΥ ΚΟΣΤΟΥΣ (€,  ΣΤΑΘ. ΤΙΜΕΣ ΕΤΟΥΣ ΒΑΣΗΣ)"]
[]
[null,"Έτος","Δαπάνες προγραμματισμού / σχεδιασμού","Αγορά γης","Κτίρια και κατασκευές ","Εγκαταστάσεις και μηχανήματα ή εξοπλισμός","Απρόβλεπτα \n(1)","Δημοσιότητα ","Επίβλεψη κατά την εκτέλεση της κατασκευής","Τεχνική βοήθεια","Άλλο 1 \n(2)","Άλλο 2 \n(2)","ΥΠΟΣΥΝΟΛΟ 1","ΦΠΑ \n(χωρίς ΦΠΑ απροβλέπτων)","ΦΠΑ απροβλέπτων (1)","ΣΥΝΟΛΟ ΦΠΑ","ΣΥΝΟΛΙΚΟ ΚΟΣΤΟΣ ΕΠΕΝΔΥΣΗΣ"]
[null,{"$f":"'ΓΕΝΙΚΑ ΣΤΟΙΧΕΙΑ'!C8","v":0},null,null,null,null,null,null,null,null,null,null,{"$f":"SUM(C5:L5)","v":0},null,null,{"$f":"SUM(N5:O5)","v":0},{"$f":"+M5+P5","v":0}]
[null,{"$f":"B5+1","v":1},null,null,null,null,null,null,null,null,null,null,{"$f":"SUM(C6:L6)","v":0},null,null,{"$f":"SUM(N6:O6)","v":0},{"$f":"+M6+P6","v":0}]
[null,{"$f":"B6+1","v":2},null,null,null,null,null,null,null,null,null,null,0,null,null,0,0]
[null,{"$f":"B7+1","v":3},null,null,null,null,null,null,null,null,null,null,0,null,null,0,0]
[null,{"$f":"B8+1","v":4},null,null,null,null,null,null,null,null,null,null,0,null,null,0,0]
[null,5,null,null,null,null,null,null,null,null,null,null,0,null,null,0,0]
[null,6,null,null,null,null,null,null,null,null,null,null,0,null,null,0,0]
[null,7,null,null,null,null,null,null,null,null,null,null,0,null,null,0,0]
[null,8,null,null,null,null,null,null,null,null,null,null,0,null,null,0,0]
[null,9,null,null,null,null,null,null,null,null,null,null,0,null,null,0,0]
[null,"ΣΥΝΟΛΟ",{"$f":"SUM(C5:C14)","v":0},0,0,0,0,0,0,0,0,0,0,0,0,0,0]
[]
["Σημειώσεις"]
["(1)","Τα μη ταμειακά λογιστικά στοιχεία, όπως αποσβέσεις, τυχόν αποθεματικά για μελλοντικά έξοδα αντικατάστασης εξοπλισμού και αποθεματικά για απρόβλεπτα εξαιρούνται από τον υπολογισμό του συντελεστή ελλείμματος χρηματοδότησης. \nΤο ποσό των απροβλέπτων όμως καταχωρίζεται στον Πίνακα. Το ποσό τους υπολογίζεται με βάση το άρθρο 57 του Ν.3669/2008 όπως κάθε φορά ισχύει, με εξαίρεση τα μεγάλα έργα όπου τα απρόβλεπτα δεν πρέπει να υπερβαίνουν το 10% του συνολικού κόστους χωρίς τα απρόβλεπτα."]
["(2)","Στην περίπτωση που χρησιμοποιηθούν οι στήλες \"Άλλο 1\" ή/και \"Άλλο 2\", η ακριβής περιγραφή κάθε κόστους να αναφερθεί στον τίτλο της στήλης που αυτό παρουσιάζεται."]

{"sheet":"ΕΠΙΛΕΞΙΜΟ ΚΟΣΤΟΣ","index":2,"n_rows":30,"n_cols":5,"rows_kept":30,"cut":false,"hidden":false,"merged":[[25,1,25,4],[29,1,29,4],[20,1,20,4],[23,1,23,4],[24,1,24,4],[28,1,28,4],[27,1,27,4],[22,1,22,4],[21,3,21,4]]}
[null,null,"ΣΥΝΟΛΙΚΟ ΚΟΣΤΟΣ ΕΠΕΝΔΥΣΗΣ","ΕΠΙΛΕΞΙΜΟ ΚΟΣΤΟΣ ΕΠΕΝΔΥΣΗΣ (7)"]
[null,"Δαπάνες προγραμματισμού / σχεδιασμού",{"$f":"+'ΚΟΣΤΟΣ ΕΠΕΝΔΥΣΗΣ'!C15","v":0}]
[null,"Αγορά γης (1)",{"$f":"+'ΚΟΣΤΟΣ ΕΠΕΝΔΥΣΗΣ'!D15","v":0},null,{"$f":"IF(D3>C22,\"error!!!\",\"  \")","v":"  "}]
[null,"Κτίρια και κατασκευές  ",{"$f":"+'ΚΟΣΤΟΣ ΕΠΕΝΔΥΣΗΣ'!E15","v":0}]
[null,"Εγκαταστάσεις και μηχανήματα ή εξοπλισμός",{"$f":"+'ΚΟΣΤΟΣ ΕΠΕΝΔΥΣΗΣ'!F15","v":0}]
[null,"Απρόβλεπτα (2)",{"$f":"+'ΚΟΣΤΟΣ ΕΠΕΝΔΥΣΗΣ'!G15","v":0}]
[null,"Δημοσιότητα ",{"$f":"+'ΚΟΣΤΟΣ ΕΠΕΝΔΥΣΗΣ'!H15","v":0}]
[null,"Επίβλεψη κατά την εκτέλεση της κατασκευής",{"$f":"+'ΚΟΣΤΟΣ ΕΠΕΝΔΥΣΗΣ'!I15","v":0}]
[null,"Τεχνική βοήθεια",{"$f":"+'ΚΟΣΤΟΣ ΕΠΕΝΔΥΣΗΣ'!J15","v":0}]
[null,"Άλλο 1 (3)",{"$f":"+'ΚΟΣΤΟΣ ΕΠΕΝΔΥΣΗΣ'!K15","v":0}]
[null,"Άλλο 2 (3)",{"$f":"+'ΚΟΣΤΟΣ ΕΠΕΝΔΥΣΗΣ'!L15","v":0}]
[null,"ΥΠΟΣΥΝΟΛΟ 1",{"$f":"SUM(C2:C11)","v":0},{"$f":"SUM(D2:D11)","v":0}]
[]
[null,"Αναπροσαρμογή τιμών κατά περίπτωση (4)"]
[]
[null,"Σύνολο ΦΠΑ (5)",{"$f":"+'ΚΟΣΤΟΣ ΕΠΕΝΔΥΣΗΣ'!P15","v":0}]
[]
[null,"ΓΕΝΙΚΟ ΣΥΝΟΛΟ (€, τρέχουσες τιμές) (6)",{"$f":"C12+C14+C16","v":0},{"$f":"D12+D14+D16","v":0}]
[]
[null,"Σημειώσεις"]
["(1)","Στη στήλη με το επιλέξιμο κόστος επένδυσης, η αγορά μη οικοδομημένης και οικοδομημένης γης δεν μπορεί να υπερβαίνει το 10% των συνολικών επιλέξιμων δαπανών της πράξης, σύμφωνα με το άρθρο 69(3)(β) του Καν. 1303/2013. "]
[null,"Μέγιστη επιλέξιμη δαπάνη για αγορά γης=",{"$f":"IF(C3>0,SUM(D2,D4:D11,D14:D16)/9,\"-\")","v":"-"},"[Σημείωση: Οι επιλέξιμες δαπάνες για αγορά μη οικοδομημένης και οικοδομημένης γης πρέπει να καταχωρίζονται στο τέλος, δηλαδή αφού έχουν καταχωριστεί όλες οι άλλες δαπάνες.]"]
[null,"Σε εξαιρετικές και δεόντως αιτιολογημένες περιπτώσεις, μπορεί να επιτραπεί υψηλότερο ποσοστό από 10% για έργα που αφορούν τη διατήρηση του περιβάλλοντος.\nΣτην περίπτωση αυτή, αγνοείστε το ποσό που εμφανίζεται στο ανωτέρω κελί και την ένδειξη error!!! στο κελί Ε3."]
["(2)","Το ποσό των απροβλέπτων υπολογίζεται με βάση το άρθρο 57 του Ν.3669/2008 όπως κάθε φορά ισχύει, με εξαίρεση τα μεγάλα έργα όπου τα απρόβλεπτα δεν πρέπει να υπερβαίνουν το 10% του συνολικού κόστους χωρίς τα απρόβλεπτα. Οι εν λόγω απρόβλεπτες δαπάνες συμπεριλαμβάνονται στο συνολικό επιλέξιμο κόστος που χρησιμοποιείται για τον υπολογισμό της προγραμματισμένης συνεισφοράς των Ταμείων."]
["(3)","Στην περίπτωση που χρησιμοποιηθούν οι στήλες \"Άλλο 1\" ή/και \"Άλλο 2\", η ακριβής περιγραφή κάθε κόστους να αναφερθεί στον τίτλο της στήλης που αυτό παρουσιάζεται."]
["(4)","Για τον υπολογισμό του κόστους σε τρέχουσες τιμές μπορεί να περιληφθεί στο κόστος μία  \"αναπροσαρμογή τιμών\" για την κάλυψη του αναμενόμενου πληθωρισμού.\n"]
["(5)","Ο ανακτήσιμος ΦΠΑ δεν είναι επιλέξιμος. Σε περίπτωση που ο ΦΠΑ θεωρείται επιλέξιμος, να αναφερθούν οι σχετικοί λόγοι."]
[null,"Γιατί ο ΦΠΑ θεωρείται επιλέξιμος …………."]
["(6)","Το συνολικό κόστος πρέπει να περιλαμβάνει το σύνολο των δαπανών που προκύπτουν για το έργο, από τον σχεδιασμό έως την επίβλεψη, και πρέπει να συμπεριλαμβάνει τον ΦΠΑ, ανεξάρτητα από το αν είναι ανακτήσιμος ή όχι. "]
["(7)","Η στήλη αυτή αφορά το \"συνολικό επιλέξιμο κόστος\" πριν να ληφθούν υπόψη οι απαιτήσεις του άρθρου 61 του Καν. 1303/2013 (δηλ. πριν την αφαίρεση των καθαρών εσόδων).\nΣτο επιλέξιμο κόστος δεν περιλαμβάνονται δαπάνες εκτός της περιόδου επιλεξιμότητας, μη επιλέξιμες δαπάνες βάσει των εφαρμοστέων ενωσιακών και εθνικών κανόνων, άλλες δαπάνες που δεν υποβάλλονται για συγχρηματοδότηση. Σημ.: Η ημερομηνία έναρξης της επιλεξιμότητας των δαπανών είναι η 1/1/2014 (εκτός εάν πρέπει να εφαρμοστούν ειδικοί κανόνες για το έργο, π.χ. κρατικές ενισχύσεις). Σε κάθε περίπτωση η επιλεξιμότητα των δαπανών καθορίζεται από την Υπουργική Απόφαση που καθορίζει τους εθνικούς κανόνες επιλεξιμότητας."]

{"sheet":"ΑΝΑΛΥΣΗ ΕΣΟΔΩΝ","index":3,"n_rows":68,"n_cols":32,"rows_kept":68,"cut":false,"hidden":false,"merged":[[57,0,57,31],[58,0,58,31],[59,0,59,31],[60,0,60,31],[61,0,61,31]]}
["ΑΝΑΛΥΤΙΚΗ ΠΑΡΟΥΣΙΑΣΗ ΕΣΟΔΩΝ (€,  ΣΤΑΘ. ΤΙΜΕΣ ΕΤΟΥΣ ΒΑΣΗΣ)"]
[null,"ΕΤΗ",{"$f":"+'ΓΕΝΙΚΑ ΣΤΟΙΧΕΙΑ'!C8","v":0},{"$f":"+C2+1","v":1},{"$f":"+D2+1","v":2},3,4,5,6,7,8,9,10,11,12,13,14,15,16,17,18,19,20,21,22,23,24,25,26,27,28,29]
["ΕΣΟΔΟ 1","ΣΥΝΟΛΑ"]
["ΣΕΝΑΡΙΟ ΜΕ ΤΟ ΕΡΓΟ"]
["ΠΟΣΟΤΗΤΑ"]
["ΤΙΜΗ ΜΟΝΑΔΑΣ"]
["ΣΥΝΟΛΟ",{"$f":"SUM(C7:AF7)","v":0},{"$f":"+C5*C6","v":0},{"$f":"+D5*D6","v":0},{"$f":"+E5*E6","v":0},0,0,0,0,0,0,0,0,0,0,0,0,0,0,0,0,0,0,0,0,0,0,0,0,0,0,0]
["ΣΕΝΑΡΙΟ ΧΩΡΙΣ ΤΟ ΕΡΓΟ"]
["ΠΟΣΟΤΗΤΑ"]
["ΤΙΜΗ ΜΟΝΑΔΑΣ"]
["ΣΥΝΟΛΟ",{"$f":"SUM(C11:AF11)","v":0},{"$f":"+C9*C10","v":0},{"$f":"+D9*D10","v":0},{"$f":"+E9*E10","v":0},0,0,0,0,0,0,0,0,0,0,0,0,0,0,0,0,0,0,0,0,0,0,0,0,0,0,0]
["ΠΡΟΣΘΕΤΑ ΕΣΟΔΑ 1",{"$f":"SUM(C12:AF12)","v":0},{"$f":"+C7-C11","v":0},{"$f":"+D7-D11","v":0},{"$f":"+E7-E11","v":0},0,0,0,0,0,0,0,0,0,0,0,0,0,0,0,0,0,0,0,0,0,0,0,0,0,0,0]
[]
["ΕΣΟΔΟ 2","ΣΥΝΟΛΑ"]
["ΣΕΝΑΡΙΟ ΜΕ ΤΟ ΕΡΓΟ"]
["ΠΟΣΟΤΗΤΑ"]
["ΤΙΜΗ ΜΟΝΑΔΑΣ"]
["ΣΥΝΟΛΟ",{"$f":"SUM(C18:AF18)","v":0},{"$f":"+C16*C17","v":0},0,0,0,0,0,0,0,0,0,0,0,0,0,0,0,0,0,0,0,0,0,0,0,0,0,0,0,0,0]
["ΣΕΝΑΡΙΟ ΧΩΡΙΣ ΤΟ ΕΡΓΟ"]
["ΠΟΣΟΤΗΤΑ"]
["ΤΙΜΗ ΜΟΝΑΔΑΣ"]
["ΣΥΝΟΛΟ",{"$f":"SUM(C22:AF22)","v":0},{"$f":"+C20*C21","v":0},0,0,0,0,0,0,0,0,0,0,0,0,0,0,0,0,0,0,0,0,0,0,0,0,0,0,0,0,0]
["ΠΡΟΣΘΕΤΑ ΕΣΟΔΑ 2",{"$f":"SUM(C23:AF23)","v":0},{"$f":"+C18-C22","v":0},0,0,0,0,0,0,0,0,0,0,0,0,0,0,0,0,0,0,0,0,0,0,0,0,0,0,0,0,0]
[]
["ΕΣΟΔΟ 3","ΣΥΝΟΛΑ"]
["ΣΕΝΑΡΙΟ ΜΕ ΤΟ ΕΡΓΟ"]
["ΠΟΣΟΤΗΤΑ"]
["ΤΙΜΗ ΜΟΝΑΔΑΣ"]
["ΣΥΝΟΛΟ",{"$f":"SUM(C29:AF29)","v":0},{"$f":"+C27*C28","v":0},0,0,0,0,0,0,0,0,0,0,0,0,0,0,0,0,0,0,0,0,0,0,0,0,0,0,0,0,0]
["ΣΕΝΑΡΙΟ ΧΩΡΙΣ ΤΟ ΕΡΓΟ"]
["ΠΟΣΟΤΗΤΑ"]
["ΤΙΜΗ ΜΟΝΑΔΑΣ"]
["ΣΥΝΟΛΟ",{"$f":"SUM(C33:AF33)","v":0},{"$f":"+C31*C32","v":0},0,0,0,0,0,0,0,0,0,0,0,0,0,0,0,0,0,0,0,0,0,0,0,0,0,0,0,0,0]
["ΠΡΟΣΘΕΤΑ ΕΣΟΔΑ 3",{"$f":"SUM(C34:AF34)","v":0},{"$f":"+C29-C33","v":0},0,0,0,0,0,0,0,0,0,0,0,0,0,0,0,0,0,0,0,0,0,0,0,0,0,0,0,0,0]
[]
["ΕΣΟΔΟ 4","ΣΥΝΟΛΑ"]
["ΣΕΝΑΡΙΟ ΜΕ ΤΟ ΕΡΓΟ"]
["ΠΟΣΟΤΗΤΑ"]
["ΤΙΜΗ ΜΟΝΑΔΑΣ"]
["ΣΥΝΟΛΟ",{"$f":"SUM(C40:AF40)","v":0},{"$f":"+C38*C39","v":0},0,0,0,0,0,0,0,0,0,0,0,0,0,0,0,0,0,0,0,0,0,0,0,0,0,0,0,0,0]
["ΣΕΝΑΡΙΟ ΧΩΡΙΣ ΤΟ ΕΡΓΟ"]
["ΠΟΣΟΤΗΤΑ"]
["ΤΙΜΗ ΜΟΝΑΔΑΣ"]
["ΣΥΝΟΛΟ",{"$f":"SUM(C44:AF44)","v":0},{"$f":"+C42*C43","v":0},0,0,0,0,0,0,0,0,0,0,0,0,0,0,0,0,0,0,0,0,0,0,0,0,0,0,0,0,0]
["ΠΡΟΣΘΕΤΑ ΕΣΟΔΑ 4",{"$f":"SUM(C45:AF45)","v":0},{"$f":"+C40-C44","v":0},0,0,0,0,0,0,0,0,0,0,0,0,0,0,0,0,0,0,0,0,0,0,0,0,0,0,0,0,0]
[]
["ΕΣΟΔΟ 5","ΣΥΝΟΛΑ"]
["ΣΕΝΑΡΙΟ ΜΕ ΤΟ ΕΡΓΟ"]
["ΠΟΣΟΤΗΤΑ"]
["ΤΙΜΗ ΜΟΝΑΔΑΣ"]
["ΣΥΝΟΛΟ",{"$f":"SUM(C51:AF51)","v":0},{"$f":"+C49*C50","v":0},0,0,0,0,0,0,0,0,0,0,0,0,0,0,0,0,0,0,0,0,0,0,0,0,0,0,0,0,0]
["ΣΕΝΑΡΙΟ ΧΩΡΙΣ ΤΟ ΕΡΓΟ"]
["ΠΟΣΟΤΗΤΑ"]
["ΤΙΜΗ ΜΟΝΑΔΑΣ"]
["ΣΥΝΟΛΟ",{"$f":"SUM(C55:AF55)","v":0},{"$f":"+C53*C54","v":0},0,0,0,0,0,0,0,0,0,0,0,0,0,0,0,0,0,0,0,0,0,0,0,0,0,0,0,0,0]
["ΠΡΟΣΘΕΤΑ ΕΣΟΔΑ 5",{"$f":"SUM(C56:AF56)","v":0},{"$f":"+C51-C55","v":0},0,0,0,0,0,0,0,0,0,0,0,0,0,0,0,0,0,0,0,0,0,0,0,0,0,0,0,0,0]
[]
["ΤΕΚΜΗΡΙΩΣΗ ΓΙΑ ΕΣΟΔΟ 1"]
["ΤΕΚΜΗΡΙΩΣΗ ΓΙΑ ΕΣΟΔΟ 2"]
["ΤΕΚΜΗΡΙΩΣΗ ΓΙΑ ΕΣΟΔΟ 3"]
["ΤΕΚΜΗΡΙΩΣΗ ΓΙΑ ΕΣΟΔΟ 4"]
["ΤΕΚΜΗΡΙΩΣΗ ΓΙΑ ΕΣΟΔΟ 5"]
["Σημειώσεις"]
["1. Η ακριβής περιγραφή κάθε εσόδου να αναφερθεί στον τίτλο ."]
["2. Όταν μια πράξη αποτελείται από ένα εντελώς νέο περιουσιακό στοιχείο (π.χ. δεν προϋπάρχει υπηρεσία ή υποδομή), τα έσοδα είναι αυτά της νέας επένδυσης"]
["    και δεν προκύπτουν από τη σύγκριση δύο σεναρίων. Σε αυτή την περίπτωση συμπληρώνεται μόνο η γραμμή ΣΕΝΑΡΙΟ ΜΕ ΤΟ ΕΡΓΟ."]
["3. Όταν ο ΦΠΑ είναι μη επιλέξιμος (δηλ. ανακτήσιμος), στα έσοδα δεν συμπεριλαμβάνεται ο ΦΠΑ."]
["4. Οι πίνακες ανάλυσης των εσόδων μπορούν να μορφοποιούνται ανάλογα με τις απαιτήσεις του έργου."]

{"sheet":"ΕΣΟΔΑ","index":4,"n_rows":39,"n_cols":8,"rows_kept":39,"cut":false,"hidden":false,"merged":[]}
[]
[null,"ΣΥΓΚΕΝΤΡΩΤΙΚΗ ΠΑΡΟΥΣΙΑΣΗ ΠΡΟΣΘΕΤΩΝ ΕΣΟΔΩΝ (€,  ΣΤΑΘ. ΤΙΜΕΣ ΕΤΟΥΣ ΒΑΣΗΣ)"]
[]
[null,"ΕΤΟΣ","ΠΡΟΣΘΕΤΑ ΕΣΟΔΑ 1","ΠΡΟΣΘΕΤΑ ΕΣΟΔΑ 2","ΠΡΟΣΘΕΤΑ ΕΣΟΔΑ 3","ΠΡΟΣΘΕΤΑ ΕΣΟΔΑ 4","ΠΡΟΣΘΕΤΑ ΕΣΟΔΑ 5","ΣΥΝΟΛΙΚΑ ΠΡΟΣΘΕΤΑ ΕΣΟΔΑ"]
[null,{"$f":"'ΚΟΣΤΟΣ ΕΠΕΝΔΥΣΗΣ'!B5","v":0},null,null,null,null,null,{"$f":"SUM(C5:G5)","v":0}]
[null,{"$f":"B5+1","v":1},null,null,null,null,null,{"$f":"SUM(C6:G6)","v":0}]
[null,2,null,null,null,null,null,0]
[null,3,null,null,null,null,null,0]
[null,4,null,null,null,null,null,0]
[null,5,null,null,null,null,null,0]
[null,6,null,null,null,null,null,0]
[null,7,null,null,null,null,null,0]
[null,8,null,null,null,null,null,0]
[null,9,null,null,null,null,null,0]
[null,10,null,null,null,null,null,0]
[null,11,null,null,null,null,null,0]
[null,12,null,null,null,null,null,{"$f":"SUM(C17:G17)","v":0}]
[null,13,null,null,null,null,null,0]
[null,14,null,null,null,null,null,0]
[null,15,null,null,null,null,null,0]
[null,16,null,null,null,null,null,0]
[null,17,null,null,null,null,null,0]
[null,18,null,null,null,null,null,0]
[null,19,null,null,null,null,null,0]
[null,20,null,null,null,null,null,0]
[null,21,null,null,null,null,null,{"$f":"SUM(C26:G26)","v":0}]
[null,22,null,null,null,null,null,0]
[null,23,null,null,null,null,null,0]
[null,24,null,null,null,null,null,0]
[null,25,null,null,null,null,null,0]
[null,26,null,null,null,null,null,0]
[null,27,null,null,null,null,null,0]
[null,28,null,null,null,null,null,0]
[null,29,null,null,null,null,null,0]
[null,"ΣΥΝΟΛΟ",{"$f":"SUM(C5:C34)","v":0},0,0,0,0,0]
[]
[null,"Σημειώσεις"]
[null,"1. Η ακριβής περιγραφή κάθε εσόδου να αναφερθεί στον τίτλο της στήλης που αυτό παρουσιάζεται, σε συμφωνία με το φύλλο \"ανάλυση εσόδων\", "]
[null,"    από όπου και πρέπει να ληφθούν οι τιμές"]

{"sheet":"ΑΝΑΛΥΣΗ ΔΑΠΑΝΩΝ","index":5,"n_rows":69,"n_cols":32,"rows_kept":69,"cut":false,"hidden":false,"merged":[[57,0,57,31],[58,0,58,31],[59,0,59,31],[60,0,60,31],[61,0,61,31]]}
["ΑΝΑΛΥΤΙΚΗ ΠΑΡΟΥΣΙΑΣΗ ΔΑΠΑΝΩΝ ΛΕΙΤΟΥΡΓΙΑΣ ΚΑΙ ΑΝΤΙΚΑΤΑΣΤΑΣΗΣ (€,  ΣΤΑΘ. ΤΙΜΕΣ ΕΤΟΥΣ ΒΑΣΗΣ)"]
[null,"ΕΤΗ",{"$f":"+'ΓΕΝΙΚΑ ΣΤΟΙΧΕΙΑ'!C8","v":0},{"$f":"+C2+1","v":1},{"$f":"+D2+1","v":2},3,4,5,6,7,8,9,10,11,12,13,14,15,16,17,18,19,20,21,22,23,24,25,26,27,28,29]
["ΔΑΠΑΝΗ 1","ΣΥΝΟΛΑ"]
["ΣΕΝΑΡΙΟ ΜΕ ΤΟ ΕΡΓΟ"]
["ΠΟΣΟΤΗΤΑ"]
["ΤΙΜΗ ΜΟΝΑΔΑΣ"]
["ΣΥΝΟΛΟ",{"$f":"SUM(C7:AF7)","v":0},{"$f":"+C5*C6","v":0},{"$f":"+D5*D6","v":0},{"$f":"+E5*E6","v":0},0,0,0,0,0,0,0,0,0,0,0,0,0,0,0,0,0,0,0,0,0,0,0,0,0,0,0]
["ΣΕΝΑΡΙΟ ΧΩΡΙΣ ΤΟ ΕΡΓΟ"]
["ΠΟΣΟΤΗΤΑ"]
["ΤΙΜΗ ΜΟΝΑΔΑΣ"]
["ΣΥΝΟΛΟ",{"$f":"SUM(C11:AF11)","v":0},{"$f":"+C9*C10","v":0},{"$f":"+D9*D10","v":0},{"$f":"+E9*E10","v":0},0,0,0,0,0,0,0,0,0,0,0,0,0,0,0,0,0,0,0,0,0,0,0,0,0,0,0]
["ΠΡΟΣΘΕΤΗ ΔΑΠΑΝΗ 1",{"$f":"SUM(C12:AF12)","v":0},{"$f":"+C7-C11","v":0},{"$f":"+D7-D11","v":0},{"$f":"+E7-E11","v":0},0,0,0,0,0,0,0,0,0,0,0,0,0,0,0,0,0,0,0,0,0,0,0,0,0,0,0]
[]
["ΔΑΠΑΝΗ 2","ΣΥΝΟΛΑ"]
["ΣΕΝΑΡΙΟ ΜΕ ΤΟ ΕΡΓΟ"]
["ΠΟΣΟΤΗΤΑ"]
["ΤΙΜΗ ΜΟΝΑΔΑΣ"]
["ΣΥΝΟΛΟ",{"$f":"SUM(C18:AF18)","v":0},{"$f":"+C16*C17","v":0},{"$f":"+D16*D17","v":0},{"$f":"+E16*E17","v":0},0,0,0,0,0,0,0,0,0,0,0,0,0,0,0,0,0,0,0,0,0,0,0,0,0,0,0]
["ΣΕΝΑΡΙΟ ΧΩΡΙΣ ΤΟ ΕΡΓΟ"]
["ΠΟΣΟΤΗΤΑ"]
["ΤΙΜΗ ΜΟΝΑΔΑΣ"]
["ΣΥΝΟΛΟ",{"$f":"SUM(C22:AF22)","v":0},{"$f":"+C20*C21","v":0},{"$f":"+D20*D21","v":0},{"$f":"+E20*E21","v":0},0,0,0,0,0,0,0,0,0,0,0,0,0,0,0,0,0,0,0,0,0,0,0,0,0,0,0]
["ΠΡΟΣΘΕΤΗ ΔΑΠΑΝΗ 2",{"$f":"SUM(C23:AF23)","v":0},{"$f":"+C18-C22","v":0},{"$f":"+D18-D22","v":0},{"$f":"+E18-E22","v":0},0,0,0,0,0,0,0,0,0,0,0,0,0,0,0,0,0,0,0,0,0,0,0,0,0,0,0]
[]
["ΔΑΠΑΝΗ 3","ΣΥΝΟΛΑ"]
["ΣΕΝΑΡΙΟ ΜΕ ΤΟ ΕΡΓΟ"]
["ΠΟΣΟΤΗΤΑ"]
["ΤΙΜΗ ΜΟΝΑΔΑΣ"]
["ΣΥΝΟΛΟ",{"$f":"SUM(C29:AF29)","v":0},{"$f":"+C27*C28","v":0},{"$f":"+D27*D28","v":0},{"$f":"+E27*E28","v":0},0,0,0,0,0,0,0,0,0,0,0,0,0,0,0,0,0,0,0,0,0,0,0,0,0,0,0]
["ΣΕΝΑΡΙΟ ΧΩΡΙΣ ΤΟ ΕΡΓΟ"]
["ΠΟΣΟΤΗΤΑ"]
["ΤΙΜΗ ΜΟΝΑΔΑΣ"]
["ΣΥΝΟΛΟ",{"$f":"SUM(C33:AF33)","v":0},{"$f":"+C31*C32","v":0},{"$f":"+D31*D32","v":0},{"$f":"+E31*E32","v":0},0,0,0,0,0,0,0,0,0,0,0,0,0,0,0,0,0,0,0,0,0,0,0,0,0,0,0]
["ΠΡΟΣΘΕΤΗ ΔΑΠΑΝΗ 4",{"$f":"SUM(C34:AF34)","v":0},{"$f":"+C29-C33","v":0},{"$f":"+D29-D33","v":0},{"$f":"+E29-E33","v":0},0,0,0,0,0,0,0,0,0,0,0,0,0,0,0,0,0,0,0,0,0,0,0,0,0,0,0]
[]
["ΔΑΠΑΝΗ 4","ΣΥΝΟΛΑ"]
["ΣΕΝΑΡΙΟ ΜΕ ΤΟ ΕΡΓΟ"]
["ΠΟΣΟΤΗΤΑ"]
["ΤΙΜΗ ΜΟΝΑΔΑΣ"]
["ΣΥΝΟΛΟ",{"$f":"SUM(C40:AF40)","v":0},{"$f":"+C38*C39","v":0},{"$f":"+D38*D39","v":0},{"$f":"+E38*E39","v":0},0,0,0,0,0,0,0,0,0,0,0,0,0,0,0,0,0,0,0,0,0,0,0,0,0,0,0]
["ΣΕΝΑΡΙΟ ΧΩΡΙΣ ΤΟ ΕΡΓΟ"]
["ΠΟΣΟΤΗΤΑ"]
["ΤΙΜΗ ΜΟΝΑΔΑΣ"]
["ΣΥΝΟΛΟ",{"$f":"SUM(C44:AF44)","v":0},{"$f":"+C42*C43","v":0},{"$f":"+D42*D43","v":0},{"$f":"+E42*E43","v":0},0,0,0,0,0,0,0,0,0,0,0,0,0,0,0,0,0,0,0,0,0,0,0,0,0,0,0]
["ΠΡΟΣΘΕΤΗ ΔΑΠΑΝΗ 5",{"$f":"SUM(C45:AF45)","v":0},{"$f":"+C40-C44","v":0},{"$f":"+D40-D44","v":0},{"$f":"+E40-E44","v":0},0,0,0,0,0,0,0,0,0,0,0,0,0,0,0,0,0,0,0,0,0,0,0,0,0,0,0]
[]
["ΔΑΠΑΝΗ 5","ΣΥΝΟΛΑ"]
["ΣΕΝΑΡΙΟ ΜΕ ΤΟ ΕΡΓΟ"]
["ΠΟΣΟΤΗΤΑ"]
["ΤΙΜΗ ΜΟΝΑΔΑΣ"]
["ΣΥΝΟΛΟ",{"$f":"SUM(C51:AF51)","v":0},{"$f":"+C49*C50","v":0},{"$f":"+D49*D50","v":0},{"$f":"+E49*E50","v":0},0,0,0,0,0,0,0,0,0,0,0,0,0,0,0,0,0,0,0,0,0,0,0,0,0,0,0]
["ΣΕΝΑΡΙΟ ΧΩΡΙΣ ΤΟ ΕΡΓΟ"]
["ΠΟΣΟΤΗΤΑ"]
["ΤΙΜΗ ΜΟΝΑΔΑΣ"]
["ΣΥΝΟΛΟ",{"$f":"SUM(C55:AF55)","v":0},{"$f":"+C53*C54","v":0},{"$f":"+D53*D54","v":0},{"$f":"+E53*E54","v":0},0,0,0,0,0,0,0,0,0,0,0,0,0,0,0,0,0,0,0,0,0,0,0,0,0,0,0]
["ΠΡΟΣΘΕΤΗ ΔΑΠΑΝΗ 4",{"$f":"SUM(C56:AF56)","v":0},{"$f":"+C51-C55","v":0},{"$f":"+D51-D55","v":0},{"$f":"+E51-E55","v":0},0,0,0,0,0,0,0,0,0,0,0,0,0,0,0,0,0,0,0,0,0,0,0,0,0,0,0]
[]
["ΤΕΚΜΗΡΙΩΣΗ ΓΙΑ ΔΑΠΑΝΗ 1"]
["ΤΕΚΜΗΡΙΩΣΗ ΓΙΑ ΔΑΠΑΝΗ 2"]
["ΤΕΚΜΗΡΙΩΣΗ ΓΙΑ ΔΑΠΑΝΗ 3"]
["ΤΕΚΜΗΡΙΩΣΗ ΓΙΑ ΔΑΠΑΝΗ 4"]
["ΤΕΚΜΗΡΙΩΣΗ ΓΙΑ ΔΑΠΑΝΗ 5"]
["Σημειώσεις"]
["1. Η ακριβής περιγραφή κάθε δαπάνης να αναφερθεί στον τίτλο. "]
["2. Όταν μια πράξη αποτελείται από ένα εντελώς νέο περιουσιακό στοιχείο (π.χ. δεν προϋπάρχει υπηρεσία ή υποδομή), οι δαπάνες λειτουργίας και αντικατάστασης είναι αυτές της νέας επένδυσης"]
["    και δεν προκύπτουν από τη σύγκριση δύο σεναρίων. Σε αυτή την περίπτωση συμπληρώνεται μόνο η γραμμή ΣΕΝΑΡΙΟ ΜΕ ΤΟ ΕΡΓΟ."]
["3. Όταν ο ΦΠΑ είναι μη επιλέξιμος (δηλ. ανακτήσιμος), στις δαπάνες δεν συμπεριλαμβάνεται ο ΦΠΑ."]
["4. Δεν συμπεριλαμβάνονται τόκοι και αποσβέσεις."]
["5. Οι πίνακες ανάλυσης των δαπανών λειτουργίας και αντικατάστασης μπορούν να μορφοποιούνται ανάλογα με τις απαιτήσεις του έργου."]

{"sheet":"ΔΑΠΑΝΕΣ","index":6,"n_rows":38,"n_cols":8,"rows_kept":38,"cut":false,"hidden":false,"merged":[]}
[]
[null,"ΣΥΓΚΕΝΤΡΩΤΙΚΗ ΠΑΡΟΥΣΙΑΣΗ ΔΑΠΑΝΩΝ ΛΕΙΤΟΥΡΓΙΑΣ ΚΑΙ ΑΝΤΙΚΑΤΑΣΤΑΣΗΣ (€,  ΣΤΑΘ. ΤΙΜΕΣ ΕΤΟΥΣ ΒΑΣΗΣ)"]
[]
[null,"ΕΤΟΣ","ΠΡΟΣΘΕΤΗ ΔΑΠΑΝΗ 1","ΠΡΟΣΘΕΤΗ ΔΑΠΑΝΗ 2","ΠΡΟΣΘΕΤΗ ΔΑΠΑΝΗ 3","ΠΡΟΣΘΕΤΗ ΔΑΠΑΝΗ 4","ΠΡΟΣΘΕΤΗ ΔΑΠΑΝΗ 5","ΣΥΝΟΛΙΚΕΣ ΠΡΟΣΘΕΤΕΣ ΔΑΠΑΝΕΣ"]
[null,{"$f":"'ΚΟΣΤΟΣ ΕΠΕΝΔΥΣΗΣ'!B5","v":0},null,null,null,null,null,{"$f":"SUM(C5:G5)","v":0}]
[null,{"$f":"B5+1","v":1},null,null,null,null,null,0]
[null,2,null,null,null,null,null,0]
[null,3,null,null,null,null,null,0]
[null,4,null,null,null,null,null,0]
[null,5,null,null,null,null,null,0]
[null,6,null,null,null,null,null,0]
[null,7,null,null,null,null,null,0]
[null,8,null,null,null,null,null,0]
[null,9,null,null,null,null,null,0]
[null,10,null,null,null,null,null,0]
[null,11,null,null,null,null,null,0]
[null,12,null,null,null,null,null,0]
[null,13,null,null,null,null,null,0]
[null,14,null,null,null,null,null,0]
[null,15,null,null,null,null,null,0]
[null,16,null,null,null,null,null,0]
[null,17,null,null,null,null,null,0]
[null,18,null,null,null,null,null,0]
[null,19,null,null,null,null,null,0]
[null,20,null,null,null,null,null,0]
[null,21,null,null,null,null,null,0]
[null,22,null,null,null,null,null,0]
[null,23,null,null,null,null,null,0]
[null,24,null,null,null,null,null,0]
[null,25,null,null,null,null,null,0]
[null,26,null,null,null,null,null,0]
[null,27,null,null,null,null,null,0]
[null,28,null,null,null,null,null,0]
[null,29,null,null,null,null,null,0]
[null,"ΣΥΝΟΛΟ",{"$f":"SUM(C5:C34)","v":0},0,0,0,0,0]
[]
[null,"Σημειώσεις"]
[null,"1. Η ακριβής περιγραφή κάθε δαπάνης να αναφερθεί στον τίτλο κάθε στήλης, σε συμφωνία με το φύλλο \"ανάλυση δαπανών\", από όπου και πρέπει να ληφθούν οι τιμές."]

{"sheet":"ΤΑΜΕΙΑΚΕΣ ΡΟΕΣ","index":7,"n_rows":44,"n_cols":7,"rows_kept":44,"cut":false,"hidden":false,"merged":[[48,1,48,3],[1,1,1,6]]}
[]
[null,"ΑΝΑΛΥΣΗ ΤΑΜΕΙΑΚΩΝ ΡΟΩΝ (€,  ΣΤΑΘ. ΤΙΜΕΣ ΕΤΟΥΣ ΒΑΣΗΣ)"]
[]
[null,"ΕΤΟΣ","ΚΟΣΤΟΣ ΕΠΕΝΔΥΣΗΣ","ΣΥΝΟΛΟ ΕΣΟΔΩΝ","ΣΥΝΟΛΟ ΔΑΠΑΝΩΝ","ΥΠΟΛΕΙΜΜΑΤΙΚΗ ΑΞΙΑ","ΚΑΘΑΡΗ ΤΑΜΕΙΑΚΗ ΡΟΗ"]
[null,null,"(1)","(2)","(3)","(4)","(5) = (2)+(4)-(1)-(3)"]
[null,{"$f":"'ΚΟΣΤΟΣ ΕΠΕΝΔΥΣΗΣ'!B5","v":0},{"$f":"IF('ΓΕΝΙΚΑ ΣΤΟΙΧΕΙΑ'!$C$11=1,'ΚΟΣΤΟΣ ΕΠΕΝΔΥΣΗΣ'!Q5-'ΚΟΣΤΟΣ ΕΠΕΝΔΥΣΗΣ'!G5-'ΚΟΣΤΟΣ ΕΠΕΝΔΥΣΗΣ'!O5,'ΚΟΣΤΟΣ ΕΠΕΝΔΥΣΗΣ'!M5-'ΚΟΣΤΟΣ ΕΠΕΝΔΥΣΗΣ'!G5)","v":0},{"$f":"ΕΣΟΔΑ!H5","v":0},{"$f":"ΔΑΠΑΝΕΣ!H5","v":0},null,{"$f":"-C6+D6-E6+F6","v":0}]
[null,{"$f":"B6+1","v":1},{"$f":"IF('ΓΕΝΙΚΑ ΣΤΟΙΧΕΙΑ'!$C$11=1,'ΚΟΣΤΟΣ ΕΠΕΝΔΥΣΗΣ'!Q6-'ΚΟΣΤΟΣ ΕΠΕΝΔΥΣΗΣ'!G6-'ΚΟΣΤΟΣ ΕΠΕΝΔΥΣΗΣ'!O6,'ΚΟΣΤΟΣ ΕΠΕΝΔΥΣΗΣ'!M6-'ΚΟΣΤΟΣ ΕΠΕΝΔΥΣΗΣ'!G6)","v":0},{"$f":"ΕΣΟΔΑ!H6","v":0},{"$f":"ΔΑΠΑΝΕΣ!H6","v":0},null,{"$f":"-C7+D7-E7+F7","v":0}]
[null,{"$f":"B7+1","v":2},{"$f":"IF('ΓΕΝΙΚΑ ΣΤΟΙΧΕΙΑ'!$C$11=1,'ΚΟΣΤΟΣ ΕΠΕΝΔΥΣΗΣ'!Q7-'ΚΟΣΤΟΣ ΕΠΕΝΔΥΣΗΣ'!G7-'ΚΟΣΤΟΣ ΕΠΕΝΔΥΣΗΣ'!O7,'ΚΟΣΤΟΣ ΕΠΕΝΔΥΣΗΣ'!M7-'ΚΟΣΤΟΣ ΕΠΕΝΔΥΣΗΣ'!G7)","v":0},{"$f":"ΕΣΟΔΑ!H7","v":0},{"$f":"ΔΑΠΑΝΕΣ!H7","v":0},null,0]
[null,3,{"$f":"IF('ΓΕΝΙΚΑ ΣΤΟΙΧΕΙΑ'!$C$11=1,'ΚΟΣΤΟΣ ΕΠΕΝΔΥΣΗΣ'!Q8-'ΚΟΣΤΟΣ ΕΠΕΝΔΥΣΗΣ'!G8-'ΚΟΣΤΟΣ ΕΠΕΝΔΥΣΗΣ'!O8,'ΚΟΣΤΟΣ ΕΠΕΝΔΥΣΗΣ'!M8-'ΚΟΣΤΟΣ ΕΠΕΝΔΥΣΗΣ'!G8)","v":0},{"$f":"ΕΣΟΔΑ!H8","v":0},{"$f":"ΔΑΠΑΝΕΣ!H8","v":0},null,0]
[null,4,{"$f":"IF('ΓΕΝΙΚΑ ΣΤΟΙΧΕΙΑ'!$C$11=1,'ΚΟΣΤΟΣ ΕΠΕΝΔΥΣΗΣ'!Q9-'ΚΟΣΤΟΣ ΕΠΕΝΔΥΣΗΣ'!G9-'ΚΟΣΤΟΣ ΕΠΕΝΔΥΣΗΣ'!O9,'ΚΟΣΤΟΣ ΕΠΕΝΔΥΣΗΣ'!M9-'ΚΟΣΤΟΣ ΕΠΕΝΔΥΣΗΣ'!G9)","v":0},{"$f":"ΕΣΟΔΑ!H9","v":0},{"$f":"ΔΑΠΑΝΕΣ!H9","v":0},null,0]
[null,5,{"$f":"IF('ΓΕΝΙΚΑ ΣΤΟΙΧΕΙΑ'!$C$11=1,'ΚΟΣΤΟΣ ΕΠΕΝΔΥΣΗΣ'!Q10-'ΚΟΣΤΟΣ ΕΠΕΝΔΥΣΗΣ'!G10-'ΚΟΣΤΟΣ ΕΠΕΝΔΥΣΗΣ'!O10,'ΚΟΣΤΟΣ ΕΠΕΝΔΥΣΗΣ'!M10-'ΚΟΣΤΟΣ ΕΠΕΝΔΥΣΗΣ'!G10)","v":0},{"$f":"ΕΣΟΔΑ!H10","v":0},{"$f":"ΔΑΠΑΝΕΣ!H10","v":0},null,0]
[null,6,{"$f":"IF('ΓΕΝΙΚΑ ΣΤΟΙΧΕΙΑ'!$C$11=1,'ΚΟΣΤΟΣ ΕΠΕΝΔΥΣΗΣ'!Q11-'ΚΟΣΤΟΣ ΕΠΕΝΔΥΣΗΣ'!G11-'ΚΟΣΤΟΣ ΕΠΕΝΔΥΣΗΣ'!O11,'ΚΟΣΤΟΣ ΕΠΕΝΔΥΣΗΣ'!M11-'ΚΟΣΤΟΣ ΕΠΕΝΔΥΣΗΣ'!G11)","v":0},{"$f":"ΕΣΟΔΑ!H11","v":0},{"$f":"ΔΑΠΑΝΕΣ!H11","v":0},null,0]
[null,7,{"$f":"IF('ΓΕΝΙΚΑ ΣΤΟΙΧΕΙΑ'!$C$11=1,'ΚΟΣΤΟΣ ΕΠΕΝΔΥΣΗΣ'!Q12-'ΚΟΣΤΟΣ ΕΠΕΝΔΥΣΗΣ'!G12-'ΚΟΣΤΟΣ ΕΠΕΝΔΥΣΗΣ'!O12,'ΚΟΣΤΟΣ ΕΠΕΝΔΥΣΗΣ'!M12-'ΚΟΣΤΟΣ ΕΠΕΝΔΥΣΗΣ'!G12)","v":0},{"$f":"ΕΣΟΔΑ!H12","v":0},{"$f":"ΔΑΠΑΝΕΣ!H12","v":0},null,0]
[null,8,{"$f":"IF('ΓΕΝΙΚΑ ΣΤΟΙΧΕΙΑ'!$C$11=1,'ΚΟΣΤΟΣ ΕΠΕΝΔΥΣΗΣ'!Q13-'ΚΟΣΤΟΣ ΕΠΕΝΔΥΣΗΣ'!G13-'ΚΟΣΤΟΣ ΕΠΕΝΔΥΣΗΣ'!O13,'ΚΟΣΤΟΣ ΕΠΕΝΔΥΣΗΣ'!M13-'ΚΟΣΤΟΣ ΕΠΕΝΔΥΣΗΣ'!G13)","v":0},{"$f":"ΕΣΟΔΑ!H13","v":0},{"$f":"ΔΑΠΑΝΕΣ!H13","v":0},null,0]
[null,9,{"$f":"IF('ΓΕΝΙΚΑ ΣΤΟΙΧΕΙΑ'!$C$11=1,'ΚΟΣΤΟΣ ΕΠΕΝΔΥΣΗΣ'!Q14-'ΚΟΣΤΟΣ ΕΠΕΝΔΥΣΗΣ'!G14-'ΚΟΣΤΟΣ ΕΠΕΝΔΥΣΗΣ'!O14,'ΚΟΣΤΟΣ ΕΠΕΝΔΥΣΗΣ'!M14-'ΚΟΣΤΟΣ ΕΠΕΝΔΥΣΗΣ'!G14)","v":0},{"$f":"ΕΣΟΔΑ!H14","v":0},{"$f":"ΔΑΠΑΝΕΣ!H14","v":0},null,0]
[null,10,null,{"$f":"ΕΣΟΔΑ!H15","v":0},{"$f":"ΔΑΠΑΝΕΣ!H15","v":0},null,0]
[null,11,null,{"$f":"ΕΣΟΔΑ!H16","v":0},{"$f":"ΔΑΠΑΝΕΣ!H16","v":0},null,0]
[null,12,null,{"$f":"ΕΣΟΔΑ!H17","v":0},{"$f":"ΔΑΠΑΝΕΣ!H17","v":0},null,0]
[null,13,null,{"$f":"ΕΣΟΔΑ!H18","v":0},{"$f":"ΔΑΠΑΝΕΣ!H18","v":0},null,0]
[null,14,null,{"$f":"ΕΣΟΔΑ!H19","v":0},{"$f":"ΔΑΠΑΝΕΣ!H19","v":0},null,0]
[null,15,null,{"$f":"ΕΣΟΔΑ!H20","v":0},{"$f":"ΔΑΠΑΝΕΣ!H20","v":0},null,0]
[null,16,null,{"$f":"ΕΣΟΔΑ!H21","v":0},{"$f":"ΔΑΠΑΝΕΣ!H21","v":0},null,0]
[null,17,null,{"$f":"ΕΣΟΔΑ!H22","v":0},{"$f":"ΔΑΠΑΝΕΣ!H22","v":0},null,0]
[null,18,null,{"$f":"ΕΣΟΔΑ!H23","v":0},{"$f":"ΔΑΠΑΝΕΣ!H23","v":0},null,0]
[null,19,null,{"$f":"ΕΣΟΔΑ!H24","v":0},{"$f":"ΔΑΠΑΝΕΣ!H24","v":0},null,0]
[null,20,null,{"$f":"ΕΣΟΔΑ!H25","v":0},{"$f":"ΔΑΠΑΝΕΣ!H25","v":0},null,{"$f":"-C26+D26-E26+F26","v":0}]
[null,21,null,{"$f":"ΕΣΟΔΑ!H26","v":0},{"$f":"ΔΑΠΑΝΕΣ!H26","v":0},null,0]
[null,22,null,{"$f":"ΕΣΟΔΑ!H27","v":0},{"$f":"ΔΑΠΑΝΕΣ!H27","v":0},null,0]
[null,23,null,{"$f":"ΕΣΟΔΑ!H28","v":0},{"$f":"ΔΑΠΑΝΕΣ!H28","v":0},null,0]
[null,24,null,{"$f":"ΕΣΟΔΑ!H29","v":0},{"$f":"ΔΑΠΑΝΕΣ!H29","v":0},null,0]
[null,25,null,{"$f":"ΕΣΟΔΑ!H30","v":0},{"$f":"ΔΑΠΑΝΕΣ!H30","v":0},null,0]
[null,26,null,{"$f":"ΕΣΟΔΑ!H31","v":0},{"$f":"ΔΑΠΑΝΕΣ!H31","v":0},null,0]
[null,27,null,{"$f":"ΕΣΟΔΑ!H32","v":0},{"$f":"ΔΑΠΑΝΕΣ!H32","v":0},null,0]
[null,28,null,{"$f":"ΕΣΟΔΑ!H33","v":0},{"$f":"ΔΑΠΑΝΕΣ!H33","v":0},null,0]
[null,29,null,{"$f":"ΕΣΟΔΑ!H34","v":0},{"$f":"ΔΑΠΑΝΕΣ!H34","v":0},null,0]
[null,"ΕΠΙΤΟΚΙΟ ΠΡΟΕΞΟΦΛΗΣΗΣ",0.04]
[null,"ΣΥΝΟΛΟ",{"$f":"SUM(C6:C35)","v":0},{"$f":"SUM(D6:D35)","v":0},{"$f":"SUM(E6:E35)","v":0},{"$f":"SUM(F6:F35)","v":0},{"$f":"SUM(G6:G35)","v":0}]
[null,"NPV",{"$f":"NPV($C$36,C6:C35)","v":0},{"$f":"NPV($C$36,D6:D35)","v":0},{"$f":"NPV($C$36,E6:E35)","v":0},{"$f":"NPV($C$36,F6:F35)","v":0},{"$f":"NPV($C$36,G6:G35)","v":0}]
[]
["Σημειώσεις"]
["1.","Η υπολειμματική αξία της επένδυσης υπολογίζεται στο τελευταίο έτος της χ/ο ανάλυσης, ενώ όλα τα προηγούμενα έτη συμπληρώνονται με την τιμή 0."]
[null,"(Εάν κρίνεται σκόπιμο, μπορεί να προστεθεί ένα νέο φύλλο εργασίας στο οποίο να αποτυπώνεται ο τρόπος υπολογισμού της υπολειμματικής αξίας.)"]
["2.","Όλες οι υπόλοιπες στήλες ενημερώνονται αυτόματα από τα άλλα φύλλα εργασίας."]
[null," "]

{"sheet":"ΚΑΘΑΡΑ ΕΣΟΔΑ","index":8,"n_rows":23,"n_cols":5,"rows_kept":23,"cut":false,"hidden":false,"merged":[[13,1,13,3],[11,3,11,4],[0,3,0,4],[3,3,3,4],[4,3,4,4],[1,1,1,4]]}
[null,null,null,"(€,  ΣΤΑΘ. ΤΙΜΕΣ ΕΤΟΥΣ ΒΑΣΗΣ)"]
[null,"ΥΠΟΛΟΓΙΣΜΟΣ ΤΩΝ ΠΡΟΕΞΟΦΛΗΜΕΝΩΝ ΚΑΘΑΡΩΝ ΕΣΟΔΩΝ ΤΗΣ ΠΡΑΞΗΣ\n[άρθρο 61 παράγραφος 3 στοιχείο β) του κανονισμού (ΕΕ) αριθ. 1303/2013]"]
[null,null,"Κύρια στοιχεία και παράμετροι ","Αξία Μη Προεξοφλημένη","Αξία Προεξοφλημένη (Καθαρή παρούσα Αξία)"]
[null,1,"Περίοδος αναφοράς (έτη)",{"$f":"'ΓΕΝΙΚΑ ΣΤΟΙΧΕΙΑ'!C9","v":0}]
[null,{"$f":"B4+1","v":2},"Χρηματοδοτικό προεξοφλητικό επιτόκιο(%)",{"$f":"'ΤΑΜΕΙΑΚΕΣ ΡΟΕΣ'!C36","v":0.04}]
[null,{"$f":"B5+1","v":3},"Συνολικό κόστος επένδυσης χωρίς τα απρόβλεπτα (σε ευρώ) = [C]",{"$f":"+'ΤΑΜΕΙΑΚΕΣ ΡΟΕΣ'!C37","v":0},{"$f":"+'ΤΑΜΕΙΑΚΕΣ ΡΟΕΣ'!C38","v":0}]
[null,4,"Υπολειμματική αξία (σε ευρώ)",{"$f":"'ΤΑΜΕΙΑΚΕΣ ΡΟΕΣ'!F37","v":0},{"$f":"'ΤΑΜΕΙΑΚΕΣ ΡΟΕΣ'!F38","v":0}]
[null,5,"Έσοδα (σε ευρώ, προεξοφλημένα)",null,{"$f":"'ΤΑΜΕΙΑΚΕΣ ΡΟΕΣ'!D38","v":0}]
[null,6,"Δαπάνες λειτουργίας και αντικατάστασης (σε ευρώ, προεξοφλημένα)",null,{"$f":"'ΤΑΜΕΙΑΚΕΣ ΡΟΕΣ'!E38","v":0}]
[null,{"$f":"B9+1","v":7},"Καθαρά έσοδα = έσοδα + υπολειμματική αξία– δαπάνες λειτουργίας και αντικατάστασης  (σε ευρώ, προεξοφλημένα) Þ [R] = (5) + (4) - (6) ",null,{"$f":"IF(E8-E9>0,E8+E7-E9,\"0\")","v":"0"}]
[null,{"$f":"B10+1","v":8},"Συνολικό κόστος επένδυσης χωρίς απρόβλεπτα - Καθαρά έσοδα Þ [C]-[R] = (3)-(7)",null,{"$f":"+E6-E10","v":0}]
[null,9,"Κατ'αναλογία εφαρμογή των προεξοφλημένων καθαρών εσόδων (%) Þ (C-R)/C = (8)/(3)",{"$f":"IF(E9>E8,100%,E11/E6)","v":{"$error":"#DIV/0!"}}]
[]
[null,"ΥΠΟΛΟΓΙΣΜΟΣ ΤΟΥ ΣΥΝΟΛΙΚΟΥ ΕΠΙΛΕΞΙΜΟΥ ΚΟΣΤΟΥΣ\n(λαμβανομένων υπόψη των απαιτήσεων του άρθρου 61 του Καν. 1303/2013)"]
[null,null,null,"Αξία"]
[null,1,"Συνολικό επιλέξιμο κόστος πριν να ληφθούν υπόψη οι απαιτήσεις που ορίζονται στο άρθρο 61 του κανονισμού (ΕΕ) αριθ. 1303/2013 (σε ευρώ, μη προεξοφλημένο)",{"$f":"+'ΕΠΙΛΕΞΙΜΟ ΚΟΣΤΟΣ'!D18","v":0}]
[null,2,"Κατ’ αναλογία εφαρμογή των προεξοφλημένων καθαρών εσόδων (%) ",{"$f":"+D12","v":{"$error":"#DIV/0!"}}]
[null,3,"Συνολικό επιλέξιμο κόστος λαμβανομένων υπόψη των απαιτήσεων που ορίζονται στο άρθρο 61 του κανονισμού (ΕΕ) αριθ. 1303/2013 (σε ευρώ, μη προεξοφλημένο) = (1)*(2)",{"$f":"+D16*D17","v":{"$error":"#DIV/0!"}}]
[]
["Σημειώσεις"]
["1.","Εάν η καθαρή παρούσα αξία των δαπανών λειτουργίας και αντικατάστασης είναι υψηλότερη από την καθαρή παρούσα αξία των εσόδων, "]
[null,"το έργο δεν θεωρείται ότι παράγει καθαρά έσοδα και η κατ' αναλογία εφαρμογή των προεξοφλημένων καθαρών εσόδων θα πρέπει να καθοριστεί σε 100 %. "]
["2.","Όλα τα κελιά ενημερώνονται αυτόματα από τα άλλα φύλλα εργασίας."]